bitfinex/quotes_SOLUSD_20260220
["timestamp","ask_amount","ask_price","bid_price","bid_amount"]
[1771563869993,0.20907341,82.812,82.789,0.46247213]
[1771563870400,0.20907341,82.809,82.789,0.46247213]
[1771563874422,0.20907341,82.809,82.78,0.46247213]
[1771563874706,0.20907341,82.809,82.771,0.46247213]
[1771563883513,0.20907341,82.809,82.773,0.45798245]
[1771563887118,0.20907341,82.809,82.775,0.45798245]
[1771563893209,0.20907341,82.808,82.777,0.45798245]
[1771563901310,0.20907341,82.808,82.779,0.45798245]
[1771563902610,0.20907341,82.808,82.781,0.45798245]
[1771563903624,0.20907341,82.808,82.783,0.47041045]
[1771563905125,0.20907341,82.807,82.783,0.47041045]
[1771563906322,0.20907341,82.805,82.783,0.47041045]
[1771563915925,0.20907341,82.805,82.746,3.69383402]
[1771563915926,0.20907341,82.789,82.751,0.48849562]
[1771563916118,0.20907341,82.789,82.749,30.21150755]
[1771563916119,0.20907341,82.787,82.753,0.48849562]
[1771563916321,0.20907341,82.779,82.753,0.48849562]
[1771563918132,0.20907341,82.779,82.755,0.48849562]
[1771563919526,0.20907341,82.778,82.755,0.48849562]
[1771563922329,0.20907341,82.778,82.723,3.69383402]
[1771563922330,3.78708052,82.8,82.771,0.48849562]
[1771563922638,0.20907341,82.803,82.771,0.48849562]
[1771563923745,0.20907341,82.801,82.773,0.48849562]
[1771563924240,0.20907341,82.806,82.78,3.78708052]
[1771563924411,0.20907341,82.806,82.781,0.48849562]
[1771563924609,12.2849171,82.81,82.781,0.48849562]
[1771563924812,12.07584369,82.81,82.781,0.48849562]
[1771563927916,12.07584369,82.81,82.783,0.48849562]
[1771563930638,0.20907341,82.819,82.785,0.48849562]
[1771563931139,0.20907341,82.819,82.791,0.48849562]
[1771563932323,0.20907341,82.819,82.793,0.48849562]
[1771563934221,0.20907341,82.823,82.793,0.48849562]
[1771563934834,12.07306619,82.829,82.801,0.48849562]
[1771563935746,12.2821396,82.829,82.801,0.48849562]
[1771563935949,0.20907341,82.828,82.801,0.48849562]
[1771563936444,0.20907341,82.828,82.802,0.48849562]
[1771563938741,3.78708052,82.83,82.802,0.48849562]
[1771563938742,0.20907341,82.826,82.802,0.48849562]
[1771563938940,0.20907341,82.826,82.803,12.07685711]
[1771563939126,0.20907341,82.826,82.804,0.47990944]
[1771563942747,0.20907341,82.831,82.806,0.47990944]
[1771563944448,0.20907341,82.831,82.808,0.47990944]
[1771563954458,0.20907341,82.831,82.81,0.47990944]
[1771563954658,0.20907341,82.819,82.786,0.47990944]
[1771563954959,0.20907341,82.799,82.778,0.47990944]
[1771563956955,0.20907341,82.799,82.776,12.08074097]
[1771563957162,0.20907341,82.799,68.231,1.0719697]
[1771563957163,0.20907341,82.799,82.573,20.1752333]
[1771563957164,0.20907341,82.749,82.573,20.1752333]
[1771563957363,3.78708052,82.69,82.63,3.78708052]
[1771563957662,3.78708052,82.71,82.59,8.79298825]
[1771563957663,3.78708052,82.68,82.59,8.79298825]
[1771563957846,3.78708052,82.68,82.62,3.78708052]
[1771563958159,3.78708052,82.69,82.63,3.78708052]
[1771563958662,12.09350699,82.689,82.631,12.10199561]
[1771563958843,3.78708052,82.68,82.631,12.10199561]
[1771563959045,3.78708052,82.68,82.632,0.42648471]
[1771563959246,3.78708052,82.68,82.633,0.47990944]
[1771563959467,3.78708052,82.68,82.634,0.42648471]
[1771563959674,3.78708052,82.68,82.645,0.47990944]
[1771563960866,3.78708052,82.7,82.651,0.42648471]
[1771563961049,12.0910212,82.706,82.651,0.42648471]
[1771563961367,3.78708052,82.7,82.651,0.42648471]
[1771563962572,3.78708052,82.7,82.653,0.42648471]
[1771563962864,3.78708052,82.69,82.653,0.42648471]
[1771563963747,0.5,82.709,82.671,0.28432314]
[1771563964060,3.78708052,82.7,82.671,0.28432314]
[1771563964845,3.78708052,82.74,82.671,0.28432314]
[1771563964846,0.5,82.759,82.691,0.42648471]
[1771563965053,0.5,82.759,82.69,7.57416104]
[1771563965054,3.78708052,82.76,82.73,8.3e-07]
[1771563965251,12.08269395,82.763,82.73,8.3e-07]
[1771563965464,12.58193389,82.769,82.711,0.42648471]
[1771563965654,12.58193389,82.769,82.74,3.78708052]
[1771563965963,0.5,82.776,82.74,3.78708052]
[1771563966750,0.5,82.776,82.741,12.08590662]
[1771563966960,0.5,82.776,82.75,3.78708052]
[1771563967466,0.5,82.776,82.741,12.08590662]
[1771563967846,12.08094231,82.775,82.75,3.78708052]
[1771563968047,0.5,82.774,82.75,3.78708052]
[1771563968765,0.5,82.774,82.74,3.78708052]
[1771563969567,0.5,82.774,82.722,0.14216157]
[1771563969568,0.5,82.774,82.75,3.78708052]
[1771563972263,0.5,82.774,82.722,0.14216157]
[1771563972482,0.5,82.769,82.73,3.78708052]
[1771563973264,0.5,82.769,82.723,12.08853644]
[1771563973464,0.5,82.767,82.711,12.09029028]
[1771563973665,0.5,82.759,82.72,3.78708052]
[1771563973964,0.5,82.759,82.72,3.79216224]
[1771563975867,0.5,82.757,82.73,3.79216224]
[1771563980159,0.5,82.755,82.73,3.79216224]
[1771563980670,0.5,82.755,82.72,3.79216224]
[1771563981157,0.5,82.753,82.73,3.79216224]
[1771563984160,0.5,82.751,82.72,3.79216224]
[1771563985375,0.5,82.749,82.72,3.79216224]
[1771563987678,0.5,82.747,82.73,3.79216224]
[1771563987976,0.5,82.747,82.71,3.79216224]
[1771563987977,0.5,82.747,82.72,3.79216224]
[1771563991872,0.5,82.747,82.721,12.08882871]
[1771563996874,30.20128876,82.778,82.741,0.45986418]
[1771563998659,30.20128876,82.778,82.742,12.54562473]
[1771563998878,0.4702108,82.777,82.742,12.54562473]
[1771564001770,0.4702108,82.775,82.743,0.45986418]
[1771564005997,0.4702108,82.773,82.743,0.45986418]
[1771564009075,0.4702108,82.771,82.743,0.45986418]
[1771564012196,12.0816721,82.77,82.743,0.45986418]
[1771564012499,0.4702108,82.769,82.743,0.45986418]
[1771564017207,0.4702108,82.767,82.743,0.45986418]
[1771564017393,0.4702108,82.767,82.732,0.45986418]
[1771564018503,0.4702108,82.767,82.732,12.54708556]
[1771564018707,0.4702108,82.767,82.733,0.45986418]
[1771564020609,0.4702108,82.767,82.713,3.69383402]
[1771564020610,0.4702108,82.765,82.724,12.08832315]
[1771564020911,0.4702108,82.759,82.724,12.08832315]
[1771564022491,0.4702108,82.757,82.73,3.79216224]
[1771564023484,0.4702108,82.757,82.731,0.48559876]
[1771564025908,0.4702108,82.757,82.732,12.08722138]
[1771564028514,0.4702108,82.757,82.732,0.49119826]
[1771564029010,12.08035854,82.779,82.733,0.49119826]
[1771564029198,12.08035854,82.779,82.741,0.49119826]
[1771564030407,3.79216224,82.79,82.742,12.08576055]
[1771564030613,3.79216224,82.79,82.743,0.49119826]
[1771564031118,0.48997553,82.789,82.743,0.49119826]
[1771564032696,0.48997553,82.787,82.745,0.49119826]
[1771564035499,42.27767979,82.786,82.746,12.08517632]
[1771564035692,0.48997553,82.785,82.747,0.49119826]
[1771564037319,0.48997553,82.779,82.747,0.49119826]
[1771564042823,0.48997553,82.777,82.747,0.49119826]
[1771564044803,0.48997553,82.777,82.745,12.08526575]
[1771564044804,0.48997553,82.775,82.749,0.49119826]
[1771564051210,0.48997553,82.773,82.749,0.49119826]
[1771564052723,0.48997553,82.771,82.749,0.49119826]
[1771564053518,0.48997553,82.771,82.691,36.33]
[1771564053519,0.48997553,82.771,82.713,0.49119826]
[1771564053720,0.48997553,82.749,82.705,0.49119826]
[1771564054032,0.48997553,82.739,82.705,0.49119826]
[1771564055033,0.48997553,82.739,82.707,0.49119826]
[1771564056537,0.48997553,82.739,82.709,0.49119826]
[1771564064450,0.48997553,82.739,82.674,12.59483423]
[1771564064451,0.464115,82.719,82.674,12.59483423]
[1771564064650,3.7896948,82.72,82.662,0.49913305]
[1771564064651,0.464115,82.689,82.662,0.49913305]
[1771564064833,0.464115,82.679,82.66,0.1]
[1771564065034,0.464115,82.679,82.651,0.49913305]
[1771564065242,0.464115,82.679,82.64,0.1]
[1771564065243,0.464115,82.669,82.641,0.49913305]
[1771564065943,0.464115,82.669,82.642,0.49913305]
[1771564066145,3.69383402,82.689,82.64,0.1]
[1771564066146,0.464115,82.659,82.64,0.1]
[1771564067344,0.464115,82.649,82.63,0.1]
[1771564067651,12.09804253,82.658,82.615,0.49913305]
[1771564067652,0.464115,82.639,82.615,0.49913305]
[1771564068154,0.464115,82.629,82.609,0.49913305]
[1771564071262,0.464115,82.629,82.605,0.49913305]
[1771564072441,0.464115,82.628,82.605,0.49913305]
[1771564072649,0.464115,82.639,82.605,0.49913305]
[1771564072956,0.464115,82.639,82.607,0.49913305]
[1771564074662,0.464115,82.639,82.609,0.49913305]
[1771564075037,0.464115,82.646,82.611,0.49913305]
[1771564077038,0.464115,82.667,82.63,3.7896948]
[1771564077233,3.7896948,82.67,82.631,0.49913305]
[1771564078335,0.464115,82.679,82.641,0.49913305]
[1771564078556,0.464115,82.685,82.641,0.49913305]
[1771564079143,0.464115,82.649,82.617,0.49913305]
[1771564079343,0.464115,82.639,82.617,0.49913305]
[1771564079543,3.7896948,82.65,82.617,0.49913305]
[1771564080241,0.464115,82.659,82.621,0.49913305]
[1771564081061,4.2538098,82.65,82.621,0.49913305]
[1771564081562,0.464115,82.65,82.622,12.10331388]
[1771564081859,0.464115,82.65,82.623,0.49913305]
[1771564082744,4.2538098,82.65,82.623,0.49913305]
[1771564082959,0.464115,82.65,82.623,0.49913305]
[1771564084462,0.48055301,82.656,82.625,0.49977319]
[1771564085163,16.76740691,82.689,82.625,0.49977319]
[1771564085367,4.27024781,82.67,82.631,0.49977319]
[1771564085765,0.48055301,82.669,82.631,0.49977319]
[1771564085941,0.48055301,82.659,82.614,12.10448592]
[1771564086145,0.48055301,82.659,82.621,0.49977319]
[1771564086451,0.48055301,82.659,82.623,0.49977319]
[1771564087771,0.49887443,82.665,82.631,0.4929544]
[1771564088460,0.49887443,82.665,82.633,0.4929544]
[1771564089561,0.49887443,82.665,82.635,0.4929544]
[1771564089958,12.09664703,82.668,82.635,0.4929544]
[1771564090167,3.7896948,82.66,82.635,0.4929544]
[1771564090473,0.49887443,82.659,82.635,0.4929544]
[1771564091657,0.49887443,82.659,82.637,0.4929544]
[1771564092165,0.49887443,82.659,82.636,12.10126337]
[1771564092354,12.09714821,82.665,82.637,0.4929544]
[1771564092568,12.59602264,82.665,82.637,0.4929544]
[1771564092869,0.49887443,82.678,82.641,0.4929544]
[1771564094670,0.49887443,82.678,82.64,3.7896948]
[1771564094671,3.7896948,82.68,82.643,0.4929544]
[1771564094869,0.49887443,82.685,82.643,0.4929544]
[1771564096863,3.7896948,82.68,82.645,0.4929544]
[1771564097366,0.49887443,82.685,82.651,0.4929544]
[1771564098956,0.49887443,82.685,82.652,12.09892077]
[1771564099158,0.49887443,82.685,82.653,0.4929544]
[1771564101559,0.49887443,82.685,82.65,3.79874144]
[1771564101560,0.49887443,82.685,82.655,0.4929544]
[1771564101762,0.49887443,82.698,82.661,0.4929544]
[1771564101971,0.49887443,82.698,82.671,0.4929544]
[1771564102161,15.88921524,82.71,82.672,0.4929544]
[1771564102361,12.0904738,82.71,82.681,0.4929544]
[1771564102877,12.08945756,82.717,82.681,0.4929544]
[1771564104072,0.33091477,82.716,82.682,12.09453085]
[1771564104258,0.33091477,82.716,82.683,0.4929544]
[1771564104957,0.33091477,82.714,82.683,0.4929544]
[1771564105365,0.33091477,82.709,82.683,0.4929544]
[1771564109871,0.33091477,82.709,82.685,0.4929544]
[1771564113060,0.33091477,82.709,82.687,0.4929544]
[1771564116077,0.33091477,82.709,82.688,12.09365325]
[1771564116594,0.33091477,82.709,82.688,12.58660765]
[1771564117382,0.33091477,82.709,82.689,0.48126781]
[1771564121669,0.33091477,82.709,82.69,0.48126781]
[1771564126171,0.33091477,82.699,82.661,0.48126781]
[1771564129373,0.33091477,82.699,82.671,0.48126781]
[1771564131788,0.33091477,82.699,82.673,0.48126781]
[1771564135492,0.33091477,82.699,82.675,0.48126781]
[1771564139785,0.33091477,82.699,82.676,12.09540858]
[1771564139992,0.33091477,82.699,82.662,30.24364278]
[1771564139993,0.33091477,82.697,82.671,0.48126781]
[1771564140309,0.33091477,82.697,82.669,12.09639085]
[1771564141503,3.79874144,82.69,82.659,0.48126781]
[1771564141676,3.79874144,82.69,82.654,0.5]
[1771564142080,3.79874144,82.69,82.658,0.5]
[1771564142081,12.09350699,82.689,82.658,0.5]
[1771564151499,12.09350699,82.689,82.66,0.5]
[1771564156509,42.31703925,82.709,82.662,0.5]
[1771564156818,3.79874144,82.7,82.662,0.5]
[1771564157304,3.79874144,82.69,82.662,0.5]
[1771564158296,3.79874144,82.7,82.662,0.5]
[1771564159207,12.09204464,82.699,82.664,0.5]
[1771564161206,12.09204464,82.699,82.671,0.5]
[1771564167232,3.79770478,82.7,82.672,12.0959938]
[1771564167531,3.79770478,82.7,82.673,0.5]
[1771564168129,3.79770478,82.71,82.673,0.5]
[1771564169320,3.79770478,82.71,82.675,0.5]
[1771564169534,12.08947396,82.717,82.681,0.5]
[1771564170729,12.08947396,82.717,82.683,0.5]
[1771564171217,12.08947396,82.717,82.691,0.5]
[1771564172311,12.0876597,82.729,82.691,0.5]
[1771564172509,3.79770478,82.72,82.691,0.5]
[1771564175136,12.089121,82.719,82.691,0.5]
[1771564175429,12.089121,82.719,82.68,3.79770478]
[1771564175430,12.089121,82.719,82.693,0.5]
[1771564180932,12.089121,82.719,82.695,0.5]
[1771564181924,12.08619876,82.739,82.701,0.5]
[1771564182525,12.08619876,82.739,82.703,0.5]
[1771564183931,12.08488422,82.748,82.703,0.5]
[1771564185241,12.08488422,82.748,82.711,0.5]
[1771564188534,3.79770478,82.73,82.691,0.5]
[1771564188739,3.79770478,82.72,82.691,0.5]
[1771564189140,3.79770478,82.73,82.691,0.5]
[1771564192050,12.0876597,82.729,82.693,0.5]
[1771564197464,3.79770478,82.72,82.695,0.5]
[1771564198858,12.0876597,82.729,82.697,0.5]
[1771564199842,12.08655439,82.737,82.701,0.5]
[1771564202641,12.08655439,82.737,82.703,0.5]
[1771564203860,3.79770478,82.73,82.703,0.5]
[1771564208661,3.79770478,82.74,82.704,12.0913136]
[1771564208859,3.79770478,82.74,82.705,0.5]
[1771564212675,12.08619876,82.739,82.706,12.0910212]
[1771564212869,12.08619876,82.739,82.707,0.5]
[1771564215364,3.79770478,82.73,82.703,0.5]
[1771564216667,12.08619876,82.739,82.703,0.5]
[1771564218169,3.79770478,82.73,82.703,0.5]
[1771564218370,3.79770478,82.73,82.698,12.5921838]
[1771564218564,3.79770478,82.73,82.699,0.5]
[1771564218870,3.79770478,82.72,82.699,0.5]
[1771564219367,3.79770478,82.73,82.699,0.5]
[1771564222068,3.79485424,82.73,82.699,0.5]
[1771564222867,12.08634484,82.738,82.701,0.5]
[1771564223052,3.79485424,82.73,82.701,0.5]
[1771564231172,12.0876597,82.729,82.701,0.5]
[1771564241390,42.30169568,82.739,82.703,0.5]
[1771564241573,3.79485424,82.73,82.703,0.5]
[1771564242206,3.79485424,82.73,82.702,12.091606]
[1771564242207,12.08327795,82.759,82.721,0.5]
[1771564242889,30.2086713,82.758,82.721,0.5]
[1771564244580,30.2086713,82.758,82.723,0.5]
[1771564245272,12.08327795,82.759,82.723,0.5]
[1771564245571,12.08327795,82.759,82.731,0.5]
[1771564247386,12.08327795,82.759,82.732,0.5]
[1771564255200,12.08327795,82.759,82.734,0.5]
[1771564264112,0.2,82.76,82.741,0.5]
[1771564266597,0.2,82.76,82.743,0.5]
[1771564269712,3.79485424,82.77,82.71,3.79485424]
[1771564269713,3.79485424,82.78,82.745,0.5]
[1771564270605,12.08076959,82.777,82.745,0.5]
[1771564271801,12.08076959,82.777,82.747,0.5]
[1771564272413,12.08076959,82.777,82.75,3.79485424]
[1771564272737,12.08076959,82.777,82.751,0.5]
[1771564273912,12.08076959,82.777,82.753,0.5]
[1771564274304,12.07933825,82.786,82.753,0.5]
[1771564281807,12.07933825,82.786,82.755,0.5]
[1771564285728,3.78943411,82.78,82.757,0.5]
[1771564286824,3.78943411,82.79,82.759,0.5]
[1771564291726,12.07889937,82.789,82.759,0.5]
[1771564294950,7.57886822,82.77,82.73,0.5]
[1771564295258,3.78943411,82.76,82.73,0.5]
[1771564295826,3.78943411,82.75,82.73,0.5]
[1771564303041,3.78943411,82.77,82.7,3.78943411]
[1771564303042,0.45910478,82.739,82.7,3.78943411]
[1771564303242,0.45910478,82.729,82.7,3.78943411]
[1771564303650,0.45910478,82.729,82.69,3.78943411]
[1771564303829,0.45910478,82.709,82.66,6.41799539]
[1771564304027,0.45910478,82.709,82.671,42.33649042]
[1771564304227,0.45910478,82.709,82.68,3.78943411]
[1771564304431,0.45910478,82.707,82.671,12.09614012]
[1771564304836,0.45910478,82.699,82.671,12.09614012]
[1771564305125,3.69383402,82.734,82.672,0.49866112]
[1771564305126,0.45910478,82.709,82.672,0.49866112]
[1771564305328,0.45910478,82.708,82.672,0.49866112]
[1771564308825,0.45910478,82.708,82.673,12.09584749]
[1771564309029,0.45910478,82.708,82.674,0.49866112]
[1771564309746,3.78943411,82.71,82.674,0.49866112]
[1771564309747,12.09087501,82.707,82.674,0.49866112]
[1771564309943,0.45910478,82.706,82.674,0.49866112]
[1771564320254,12.0911674,82.705,82.675,12.09555488]
[1771564320447,0.45910478,82.704,82.676,0.49866112]
[1771564321857,0.45910478,82.704,82.675,12.09555488]
[1771564321858,0.45910478,82.731,82.691,0.49866112]
[1771564322060,0.45910478,82.731,82.701,0.49866112]
[1771564322237,0.45910478,82.729,82.701,0.49866112]
[1771564322438,0.45910478,82.729,82.702,12.091606]
[1771564322764,0.45910478,82.729,82.703,0.49866112]
[1771564325467,0.45910478,82.729,82.705,0.45742932]
[1771564326361,0.45068556,82.709,82.691,0.45742932]
[1771564327565,0.45068556,82.709,82.692,12.56365185]
[1771564328067,0.45068556,82.709,82.693,0.4705836]
[1771564329767,0.45068556,82.709,82.694,12.09277577]
[1771564331572,0.45068556,82.709,82.694,0.4705836]
[1771564332573,0.45068556,82.709,82.695,12.09262954]
[1771564335281,0.45068556,82.709,82.695,0.4705836]
[1771564336077,0.45068556,82.709,82.695,12.5630886]
[1771564338770,0.45068556,82.709,82.696,0.4705836]
[1771564340173,0.45859384,82.719,82.696,0.4705836]
[1771564340871,12.08854653,82.723,82.697,0.4705836]
[1771564341580,12.08754524,82.73,82.697,0.4705836]
[1771564341778,0.45859384,82.738,82.701,0.4705836]
[1771564341981,3.78943411,82.73,82.701,0.4705836]
[1771564343776,3.78943411,82.73,82.692,30.23260284]
[1771564343777,0.45859384,82.735,82.703,0.4705836]
[1771564344083,3.79424006,82.73,82.703,0.4705836]
[1771564346070,3.79424006,82.73,82.705,0.4705836]
[1771564346572,12.08723661,82.732,82.705,0.4705836]
[1771564346782,0.45859384,82.739,82.705,0.4705836]
[1771564348482,3.79424006,82.74,82.707,0.4705836]
[1771564348691,3.79424006,82.74,82.706,12.0910212]
[1771564348692,3.79424006,82.74,82.711,0.4705836]
[1771564349673,12.5447926,82.739,82.713,0.4705836]
[1771564349975,0.45859384,82.738,82.713,0.4705836]
[1771564353893,0.45859384,82.738,82.714,12.08985177]
[1771564354201,3.79424006,82.74,82.715,0.4705836]
[1771564354798,4.2528339,82.74,82.715,0.4705836]
[1771564355502,0.45859384,82.739,82.715,0.4705836]
[1771564357997,0.47265093,82.737,82.715,0.4705836]
[1771564360595,0.47265093,82.737,82.715,12.08962102]
[1771564360794,0.47265093,82.746,82.716,0.49048751]
[1771564362499,0.47265093,82.746,82.717,12.0894133]
[1771564362700,0.47265093,82.746,82.718,0.49048751]
[1771564362895,0.47265093,82.746,82.721,0.49048751]
[1771564364001,0.47265093,82.746,82.723,0.49048751]
[1771564367197,0.47265093,82.746,82.724,12.0883903]
[1771564367406,0.47265093,82.746,82.725,0.49048751]
[1771564370206,0.47265093,82.744,82.725,0.49048751]
[1771564381828,0.47265093,82.729,82.691,0.49048751]
[1771564382615,0.47265093,82.719,82.691,0.49048751]
[1771564384130,0.47265093,82.719,82.693,0.49777865]
[1771564387339,0.47265093,82.719,82.694,12.09277577]
[1771564387544,0.47265093,82.719,82.695,0.48900836]
[1771564393853,0.47265093,82.719,82.696,12.09248331]
[1771564394061,0.47265093,82.719,82.697,0.48900836]
[1771564397868,0.48324732,82.709,82.682,0.48900836]
[1771564398047,0.48324732,82.699,82.682,0.48900836]
[1771564399463,0.48324732,82.721,82.682,0.48900836]
[1771564399657,3.79424006,82.73,82.691,0.48900836]
[1771564400048,4.27748738,82.73,82.693,0.48900836]
[1771564400241,0.48324732,82.729,82.701,0.48900836]
[1771564405567,0.48324732,82.727,82.701,0.48900836]
[1771564407348,0.48324732,82.727,82.703,0.48900836]
[1771564410964,0.48324732,82.725,82.703,0.48900836]
[1771564411171,0.48324732,82.725,82.693,0.48900836]
[1771564413768,0.48324732,82.723,82.695,0.48900836]
[1771564418280,0.45613676,82.721,82.697,0.49760356]
[1771564419679,0.45613676,82.719,82.697,0.49760356]
[1771564420881,0.45613676,82.723,82.697,0.49760356]
[1771564422162,0.45613676,82.721,82.697,0.49760356]
[1771564423083,12.08897485,82.72,82.697,0.49760356]
[1771564423278,0.45613676,82.719,82.697,0.49760356]
[1771564424280,0.45613676,82.717,82.697,0.49760356]
[1771564425481,0.45613676,82.717,82.661,0.14216157]
[1771564425482,0.45613676,82.717,82.684,0.49760356]
[1771564425668,0.45613676,82.709,82.678,0.49760356]
[1771564425984,0.45613676,82.699,82.678,0.49760356]
[1771564426876,0.45613676,82.697,82.674,0.49760356]
[1771564427385,0.45613676,82.697,82.69,2.0]
[1771564434982,12.09185851,82.701,82.69,2.0]
[1771564435398,12.54799527,82.701,82.69,2.0]
[1771564436094,0.45613676,82.7,82.69,2.0]
[1771564436295,4.25115026,82.7,82.69,2.0]
[1771564441697,0.45613676,82.706,82.691,0.49760356]
[1771564441997,12.0911674,82.705,82.691,0.49760356]
[1771564442795,12.55221792,82.705,82.691,0.49760356]
[1771564443303,0.46105052,82.726,82.692,0.46674749]
[1771564448902,0.49537733,82.724,82.694,0.49168325]
[1771564450805,12.08517632,82.746,82.697,0.49168325]
[1771564450999,12.08517632,82.746,82.711,0.49168325]
[1771564451202,0.49537733,82.739,82.711,0.49168325]
[1771564451391,0.49537733,82.729,82.696,0.49168325]
[1771564451589,0.49537733,82.719,82.696,0.49168325]
[1771564452691,0.49537733,82.729,82.696,0.49168325]
[1771564453406,0.49537733,82.727,82.696,0.49168325]
[1771564454499,3.7950135,82.72,82.696,0.49168325]
[1771564455307,4.29039083,82.72,82.696,0.49168325]
[1771564455806,0.49537733,82.719,82.696,0.49168325]
[1771564458708,0.49537733,82.723,82.696,0.49168325]
[1771564458911,3.7950135,82.72,82.696,0.49168325]
[1771564459411,0.49537733,82.739,82.698,0.49168325]
[1771564459611,0.49537733,82.729,82.698,0.49168325]
[1771564459911,0.49537733,82.719,82.698,0.49168325]
[1771564461808,0.49537733,82.719,82.695,0.49168325]
[1771564468316,0.49537733,82.717,82.695,0.49168325]
[1771564481142,0.49537733,82.717,82.69,2.0]
[1771564481143,0.45885849,82.709,82.69,2.0]
[1771564482228,0.45885849,82.709,82.69,2.48445362]
[1771564483131,3.79578246,82.7,82.69,2.48445362]
[1771564485037,0.45885849,82.703,82.69,2.48445362]
[1771564486837,3.79578246,82.7,82.69,2.48445362]
[1771564497236,0.45885849,82.703,82.69,2.48445362]
[1771564499637,0.45885849,82.703,82.691,0.48445362]
[1771564501854,12.55043038,82.703,82.69,2.0]
[1771564502035,0.45885849,82.703,82.691,0.48445362]
[1771564502236,0.45885849,82.707,82.691,0.48445362]
[1771564502740,0.45885849,82.699,82.69,2.0]
[1771564504045,0.45885849,82.699,82.684,0.4521697]
[1771564507056,3.79578246,82.7,82.684,0.4521697]
[1771564507260,12.09188638,82.701,82.684,0.4521697]
[1771564511555,0.48738313,82.703,82.684,0.4521697]
[1771564513955,12.091606,82.702,82.684,0.4521697]
[1771564515141,0.48738313,82.707,82.684,0.4521697]
[1771564518665,0.48738313,82.705,82.684,0.4521697]
[1771564520346,0.48738313,82.699,82.675,0.46991799]
[1771564523149,0.48738313,82.699,82.676,12.09540858]
[1771564523349,0.48738313,82.699,82.677,0.46991799]
[1771564538276,3.79743171,82.72,82.691,0.45265651]
[1771564538485,0.48199785,82.726,82.69,3.79743171]
[1771564538696,0.48199785,82.726,82.678,42.33290597]
[1771564538697,0.48199785,82.709,82.68,3.79743171]
[1771564540468,0.48199785,82.709,82.683,0.45265651]
[1771564543289,0.48199785,82.709,82.685,0.45265651]
[1771564546089,0.48199785,82.709,82.687,0.45265651]
[1771564547891,0.48199785,82.709,82.689,0.45265651]
[1771564548870,0.48199785,82.699,82.65,3.79743171]
[1771564549070,12.09047488,82.71,82.63,0.1]
[1771564549071,0.48199785,82.679,82.63,0.1]
[1771564549366,0.48199785,82.679,82.642,0.28432314]
[1771564549566,0.48199785,82.679,82.64,3.79743171]
[1771564549771,0.48199785,82.679,82.65,3.79743171]
[1771564549977,0.48199785,82.679,82.651,12.09906716]
[1771564550992,0.48199785,82.679,82.661,0.45265651]
[1771564553283,0.48199785,82.679,82.66,0.1]
[1771564555197,0.48199785,82.679,82.66,0.55265651]
[1771564560089,0.48199785,82.679,82.662,0.45265651]
[1771564564001,3.79743171,82.67,82.66,0.1]
[1771564564176,0.45536198,82.669,82.66,0.1]
[1771564565395,0.45536198,82.679,82.661,0.49513304]
[1771564570499,3.79743171,82.68,82.661,0.49513304]
[1771564572503,0.49197884,82.678,82.661,0.49513304]
[1771564575803,0.49197884,82.694,82.661,0.49256363]
[1771564575989,3.79743171,82.69,82.663,0.49256363]
[1771564576999,4.28941055,82.69,82.663,0.49256363]
[1771564579404,12.09350699,82.689,82.665,0.49256363]
[1771564580997,12.58548583,82.689,82.665,0.49256363]
[1771564581199,12.09350699,82.689,82.665,0.49256363]
[1771564581495,12.58548583,82.689,82.665,0.49256363]
[1771564581812,0.49197884,82.688,82.665,0.49256363]
[1771564583404,0.49197884,82.686,82.665,0.49256363]
[1771564585810,4.28941055,82.69,82.665,0.49256363]
[1771564586210,12.09350699,82.689,82.665,0.49256363]
[1771564586414,12.58548583,82.689,82.665,0.49256363]
[1771564586813,0.49197884,82.688,82.665,0.49256363]
[1771564591224,12.09229714,82.698,82.667,0.49256363]
[1771564591428,12.09229714,82.698,82.671,0.49256363]
[1771564591606,12.09096802,82.707,82.681,0.49256363]
[1771564592009,0.49197884,82.706,82.681,0.49256363]
[1771564593920,12.0911674,82.705,82.681,0.49256363]
[1771564594124,0.49197884,82.704,82.681,0.49256363]
[1771564597932,4.25690083,82.7,82.681,0.49256363]
[1771564598221,0.45874504,82.699,82.681,0.49256363]
[1771564599613,0.45874504,82.689,82.663,0.45862471]
[1771564599808,0.45874504,82.679,82.66,0.1]
[1771564600016,3.79815579,82.67,82.66,0.1]
[1771564600231,0.45874504,82.672,82.66,0.1]
[1771564605628,0.45874504,82.669,82.645,12.09989614]
[1771564607638,0.45874504,82.669,82.648,0.45862471]
[1771564608232,0.45874504,82.673,82.648,0.45862471]
[1771564614030,0.45874504,82.669,82.648,0.45862471]
[1771564614851,0.45874504,82.669,82.645,12.09982902]
[1771564615152,0.45874504,82.669,82.645,12.55845373]